lending/lending_fUSD_20240908
["ID","MTS","AMOUNT","RATE_DAILY","PERIOD"]
[337555532,1725810632851,-201.69,0.00013944,2]
[337555534,1725810632860,-13357.9253,0.00013997,2]
[337555536,1725810632869,-8039.5438,0.00013997,2]
[337555537,1725810632879,-1000.0,0.00013997,2]
[337555538,1725810632888,-1000.0,0.00014096,2]
[337555539,1725810632897,-150.0,0.00014178,2]
[337555540,1725810632906,-150.34,0.00014192,2]
[337555541,1725810632916,-1000.0,0.00014233,2]
[337555542,1725810632925,-1000.0,0.00014233,2]
[337555543,1725810632935,-150.0,0.00014278,2]
[337555544,1725810632944,-215.85,0.00014384,2]
[337555545,1725810632953,-1000.0,0.00014547,2]
[337555546,1725810632962,-201.69,0.00014641,2]
[337555547,1725810632972,-316.0695372,0.0001466,2]
[337555548,1725810632982,-537.6,0.00014678,2]
[337555549,1725810632992,-150.0,0.00014734,2]
[337555550,1725810633002,-361.52,0.00014765,3]
[337555551,1725810633012,-150.0,0.00014766,2]
[337555552,1725810633021,-83353.76902728,0.00014775,2]
[337555561,1725810637568,-5400.0,0.00014775,2]
[337555562,1725810637582,-54500.0,0.00014775,2]
[337555563,1725810637593,-307.83913659,0.00014775,2]
[337555564,1725810637604,-12387.05,0.00014775,2]
[337555565,1725810637618,-368.85532596,0.00014775,2]
[337555566,1725810637651,-541.21067,0.00014775,2]
[337555567,1725810637696,-1002.25763523,0.00014775,2]
[337555568,1725810637708,-5431.426,0.00014775,2]
[337555569,1725810637720,-364.55288824,0.00014775,2]
[337555570,1725810637732,-547.02185565,0.00014775,2]
[337555571,1725810637876,-1231.76374629,0.00014775,2]
[337555572,1725810637888,-372.32913044,0.00014775,2]
[337555573,1725810637899,-1662.53384459,0.00014775,2]
[337555574,1725810637911,-13101.37155573,0.00014775,2]
[337555575,1725810637922,-1214.52265281,0.00014775,2]
[337555576,1725810637934,-1796.47111877,0.00014775,2]
[337555578,1725810637944,-28.51888123,0.000148,2]
[337555590,1725810639565,-541.37999233,0.000148,2]
[337555591,1725810639575,-150.0,0.00014802,2]
[337555592,1725810639584,-420.0,0.00014814,2]
[337555593,1725810639595,-569.89887354,0.00014814,2]
[337555594,1725810639604,-569.89887354,0.00014829,2]
[337555595,1725810639613,-448.334,0.00014841,2]
[337555596,1725810639623,-569.89887354,0.00014843,2]
[337555597,1725810639634,-11764.63066246,0.0001485,2]
[337555598,1725810639644,-150.0,0.0001485,2]
[337555599,1725810639654,-2256.82572,0.0001485,2]
[337555600,1725810639662,-569.89887354,0.00014857,2]
[337555601,1725810639672,-5800.0,0.00014866,2]
[337555602,1725810639682,-569.89887354,0.00014871,2]
[337555603,1725810639691,-5800.0,0.00014874,2]
[337555604,1725810639700,-5800.0,0.00014883,2]
[337555605,1725810639710,-569.89887354,0.00014886,2]
[337555606,1725810639719,-13185.2932271,0.0001489,3]
[337555607,1725810639729,-5800.0,0.00014891,2]
[337555608,1725810639741,-236.67625522,0.00014893,2]
[337555609,1725810639751,-236.67625522,0.00014897,2]
[337555610,1725810639761,-1008.27146792,0.000149,2]
[337555611,1725810639770,-8500.0,0.000149,2]
[337555612,1725810639780,-5800.0,0.000149,2]
[337555613,1725810639789,-2810.11294913,0.000149,2]
[337555614,1725810639798,-188.5938,0.000149,2]
[337555615,1725810639810,-350.36649165,0.000149,2]
[337555616,1725810639820,-569.89887354,0.000149,2]
[337555617,1725810639831,-236.67625522,0.000149,2]
[337555618,1725810639841,-500.0,0.00014904,2]
[337555619,1725810639850,-500.0,0.00014904,2]
[337555620,1725810639863,-150.0,0.00014964,2]
[337555621,1725810639872,-580.32321266,0.00014969,2]
[337555622,1725810639882,-332.02068214,0.00014969,2]
[337555623,1725810639891,-218.99364362,0.00014969,2]
[337555624,1725810639900,-121963.962351,0.0001497,3]
[337555625,1725810639910,-242.948,0.0001497,2]
[337555626,1725810639920,-500.0,0.00014973,2]
[337555627,1725810639929,-9888.96992034,0.0001498,3]
[337555628,1725810639939,-3296.32330678,0.0001498,3]
[337555629,1725810639949,-202.05770887,0.0001498,2]
[337555630,1725810639959,-152.41,0.0001498,2]
[337555631,1725810639969,-152.41,0.0001498,2]
[337555632,1725810639978,-11923.9823521,0.00014989,3]
[337555633,1725810639989,-23847.9647042,0.0001499,3]
[337555635,1725810639999,-274251.594098,0.0001499,3]
[337555636,1725810640008,-202.05770887,0.0001499,2]
[337555637,1725810640018,-152.41,0.0001499,2]
[337555638,1725810640028,-152.41,0.0001499,2]
[337555639,1725810640037,-152.41,0.0001499,2]
[337555640,1725810640046,-152.41,0.0001499,2]
[337555641,1725810640056,-152.41,0.0001499,2]
[337555643,1725810640065,-152.41,0.0001499,2]
[337555645,1725810640075,-152.41,0.0001499,2]
[337555646,1725810640085,-152.41,0.0001499,2]
[337555647,1725810640094,-152.41,0.0001499,2]
[337555648,1725810640104,-152.41,0.0001499,2]
[337555649,1725810640114,-152.41,0.0001499,2]
[337555650,1725810640123,-152.41,0.0001499,2]
[337555651,1725810640134,-152.41,0.0001499,2]
[337555652,1725810640145,-152.41,0.0001499,2]
[337555653,1725810640154,-152.41,0.0001499,2]
[337555654,1725810640163,-152.41,0.0001499,2]
[337555655,1725810640173,-152.41,0.0001499,2]
[337555656,1725810640182,-152.41,0.0001499,2]
[337555657,1725810640192,-152.41,0.0001499,2]
[337555658,1725810640202,-152.41,0.0001499,2]
[337555659,1725810640213,-152.41,0.0001499,2]
[337555660,1725810640223,-152.41,0.0001499,2]
[337555661,1725810640233,-152.41,0.0001499,2]
[337555662,1725810640242,-152.41,0.0001499,2]
[337555663,1725810640252,-152.41,0.0001499,2]
[337555664,1725810640262,-152.41,0.0001499,2]
[337555665,1725810640271,-152.41,0.0001499,2]
[337555666,1725810640281,-152.41,0.0001499,2]
[337555667,1725810640290,-152.41,0.0001499,2]
[337555668,1725810640300,-453.6838404,0.00014993,2]
[337555669,1725810640310,-688.5984613,0.00014993,2]
[337555670,1725810640319,-343.1937657,0.00014993,2]
[337555671,1725810640328,-407.5676866,0.00014993,2]
[337555672,1725810640338,-241.1920804,0.00014993,2]
[337555673,1725810640347,-556.596545,0.00014993,2]
[337555674,1725810640356,-246.2328325,0.00014993,2]
[337555675,1725810640365,-7782.5536468,0.00014993,2]
[337555676,1725810640375,-368.9762398,0.00014993,2]
[337555677,1725810640384,-500.25591058,0.00014998,2]
[337555678,1725810640396,-3825.37832583,0.00014999,2]
[337555679,1725810640405,-1724.24887645,0.00014999,2]
[337555680,1725810640414,-425.0,0.00015,2]
[337555681,1725810640423,-872.0,0.00015,2]
[337555682,1725810640433,-56916.20520084,0.00015,2]
[337555683,1725810640442,-135100.02873789,0.00015,2]
[337555684,1725810640468,-7023.86718379,0.00015,2]
[337555685,1725810640479,-834.30484756,0.00015,2]
[337555686,1725810640493,-1619.97445168,0.00015,2]
[337555687,1725810640504,-4456993.6060015,0.00015,2]
[337555688,1725810640516,-273.573,0.00015,2]
[337555689,1725810640527,-40435.81690446,0.00015,2]
[337555690,1725810640807,-539.50081475,0.00015,2]
[337555698,1725810642744,-1724.24887645,0.00014999,2]
[337555699,1725810642755,-2238786.20919481,0.00015,2]
[337555700,1725810642766,-1363.125,0.00015,2]
[337555701,1725810642778,-2894.76552035,0.00015,2]
[337555702,1725810642809,-29025.27838047,0.00015,2]
[337555703,1725810642821,-2267365.13564185,0.00015,2]
[337555741,1725810643548,-301.881558,0.00015,2]
[337555743,1725810643563,-2703.0,0.00015,2]
[337555745,1725810643574,-1080.0,0.00015,2]
[337555776,1725810643867,-9480.11647319,0.00015,2]
[337555780,1725810643903,-6136.255125,0.00015,2]
[337555782,1725810643917,-2722578.18952122,0.00015,2]
[337555784,1725810643928,-22982.3562768,0.00015,2]
[337555789,1725810643971,-116260.0,0.00015,2]
[337555792,1725810643983,-129280.0,0.00015,2]
[337555867,1725810645600,-476.55075866,0.00015,2]
[337555872,1725810645666,-547.51,0.00015,2]
[337555877,1725810645715,-440.56,0.00015,2]
[337555878,1725810645726,-83946.21824106,0.00015,2]
[337555880,1725810645737,-2064.71264005,0.00015,2]
[337555882,1725810645749,-611.81478294,0.00015,2]
[337555883,1725810645760,-7233.95473984,0.00015,2]
[337555884,1725810645798,-2310.0,0.00015,2]
[337555885,1725810645809,-1086.72,0.00015,2]
[337557447,1725810691829,588.6060689,0.00012164,2]
[337557448,1725810727504,500.0,0.00012164,2]
[337557450,1725810982950,409.623731,0.00012947,120]
[337557451,1725811004909,169.46,0.00010959,2]
[337557452,1725811016305,264.7,0.00011603,2]
[337557453,1725811176813,175.26,0.00010575,2]
[337557454,1725811194024,-300.0,0.00012946,2]
[337557455,1725811194048,-9700.0,0.00012947,2]
[337557462,1725811549684,251.46,0.00010874,2]
[337557465,1725811831687,-162.61,0.00012711,2]
[337557466,1725811831697,-162.61,0.00012722,2]
[337557467,1725811831708,-162.61,0.00012722,2]
[337557468,1725811831717,-300.0,0.00012731,2]
[337557469,1725811831726,-152.64405097,0.00012732,2]
[337557470,1725811831738,-1709.87048133,0.00012732,2]
[337557471,1725811831749,-1451.24090158,0.00012732,2]
[337557472,1725811831848,-1097.58172278,0.00012732,2]
[337557473,1725811831958,-12310.96284334,0.00012732,2]
[337557474,1725811831968,-162.61,0.00012825,2]
[337557475,1725811831977,-1411.67,0.00012835,2]
[337557476,1725811831987,-514.9049,0.00012847,2]
[337557477,1725811831996,-515.49,0.00012882,2]
[337557478,1725811832012,-1866.09,0.00012895,2]
[337557479,1725811832030,-162.61,0.00012918,2]
[337557480,1725811832045,-1826.03,0.00012928,2]
[337557481,1725811832055,-24259.84437134,0.00012928,2]
[337557482,1725811832064,-153.8,0.0001301,2]
[337557483,1725811832074,-500.0,0.00013014,2]
[337557484,1725811832084,-250.0,0.00013049,2]
[337557485,1725811832093,-409.01,0.00013049,2]
[337557486,1725811832103,-250.0,0.00013095,2]
[337557487,1725811832112,-251.46,0.00013138,2]
[337557488,1725811832122,-1000.0,0.00013328,2]
[337557489,1725811832131,-2751.0,0.00013699,2]
[337557490,1725811832140,-214.07,0.00013699,2]
[337557491,1725811832150,-372.38,0.00013699,2]
[337557492,1725811832159,-500.0,0.00013699,2]
[337557493,1725811832168,-200.0,0.00013699,2]
[337557494,1725811832178,-4782.55783368,0.00013734,2]
[337557495,1725811832187,-1458.4,0.00013734,2]
[337557496,1725811832197,-250.0,0.00013824,3]
[337557498,1725811832206,-41095.4708,0.00013834,2]
[337557499,1725811832215,-6498.0575,0.00013834,2]
[337557501,1725811832225,-5976.1879,0.00013834,2]
[337557503,1725811832234,-500.0,0.00013834,2]
[337557505,1725811832244,-86395.0675,0.00013834,2]
[337557507,1725811832253,-7500.0,0.00013834,2]
[337557509,1725811832262,-4782.55783363,0.00013864,2]
[337557511,1725811832271,-420.0,0.00013965,2]
[337557513,1725811832281,-4782.55783363,0.00013993,2]
[337557515,1725811832290,-174.58,0.0001404,2]
[337557517,1725811832299,-4782.55783363,0.00014123,2]
[337557519,1725811832309,-1000.0,0.00014192,2]
[337557520,1725811832319,-1000.0,0.00014192,2]
[337557522,1725811832328,-1000.0,0.00014192,2]
[337557524,1725811832338,-680.0,0.00014192,2]
[337557526,1725811832347,-235.625,0.00014192,2]
[337557528,1725811832356,-4782.55783363,0.00014252,2]
[337557530,1725811832365,-4782.55783363,0.00014382,2]
[337557532,1725811832375,-212.181998,0.00014382,2]
[337557534,1725811832384,-372.38,0.00014384,2]
[337557536,1725811832393,-2021.2999354,0.00014511,2]
[337557562,1725811837675,-2761.25789823,0.00014511,2]
[337557563,1725811837685,-874.19770927,0.00014641,2]
[337557564,1725811837696,-1088.74516447,0.00014641,2]
[337557565,1725811837708,-1682.62963486,0.00014641,2]
[337557566,1725811837721,-1136.98532503,0.00014641,2]
[337557567,1725811837731,-1452.74654666,0.00014675,2]
[337557568,1725811837767,-255.53745705,0.00014675,2]
[337557569,1725811837779,-1458.4,0.00014675,2]
[337557570,1725811837791,-1071.04659629,0.00014675,2]
[337557571,1725811837801,-428.95340371,0.00014675,2]
[337557572,1725811837813,-571.04659629,0.00014675,2]
[337557573,1725811837823,-431.6487337,0.000147,2]
[337557574,1725811837835,-350.38223683,0.000147,2]
[337557575,1725811837877,-321.57343197,0.000147,2]
[337557576,1725811837887,-361.95253841,0.000147,2]
[337557577,1725811837987,-669.3615266,0.000147,2]
[337557578,1725811837997,-200.6724799,0.00014701,2]
[337557605,1725811839894,-254.33474534,0.00014701,2]
[337557634,1725811842700,-719.10546284,0.00014701,2]
[337557650,1725811843647,-3245.88731192,0.00014701,2]
[337557651,1725811843656,-316.0695372,0.00014759,2]
[337557652,1725811843666,-4782.55783363,0.0001477,2]
[337557653,1725811843676,-12420.64794401,0.00014775,2]
[337557654,1725811843685,-163.25656161,0.0001479,2]
[337557655,1725811843695,-154.45046497,0.00014829,2]
[337557656,1725811843705,-624.0,0.00014841,2]
[337557657,1725811843714,-330.19573859,0.00014841,2]
[337557658,1725811843737,-929.80426141,0.00014841,2]
[337557659,1725811843746,-447.0,0.00014841,2]
[337557660,1725811843756,-931.0,0.00014841,2]
[337557661,1725811843766,-552.0,0.00014841,2]
[337557662,1725811843776,-627.117,0.00014841,2]
[337557663,1725811843785,-247.0,0.00014841,2]
[337557664,1725811843795,-11764.63066246,0.0001485,2]
[337557665,1725811843805,-204.39729,0.0001485,2]
[337557666,1725811843815,-2821.68404,0.0001485,2]
[337557667,1725811843824,-11410.1717633,0.0001489,3]
[337557668,1725811843835,-330.01062213,0.0001489,2]
[337557669,1725811843845,-1209.4532,0.0001489,2]
[337557670,1725811843856,-7474.3686,0.0001489,2]
[337557671,1725811843866,-1263.1381,0.0001489,2]
[337557672,1725811843877,-5800.0,0.00014891,2]
[337557673,1725811843887,-16094.0578,0.000149,2]
[337557674,1725811843898,-2218.3362,0.000149,2]
[337557675,1725811843909,-386.80171268,0.000149,2]
[337557676,1725811843919,-1840.01134927,0.000149,2]
[337557694,1725811846631,-3959.98865073,0.000149,2]
[337557695,1725811846641,-4782.55783363,0.000149,2]
[337557696,1725811846651,-756.0,0.000149,2]
[337557697,1725811846661,-3785.65058902,0.000149,2]
[337557698,1725811846671,-500.0,0.00014904,2]
[337557699,1725811846680,-150.0,0.00014931,2]
[337557700,1725811846690,-235.625,0.00014937,2]
[337557701,1725811846699,-150.0,0.00014953,2]
[337557702,1725811846708,-500.0,0.00014969,2]
[337557703,1725811846718,-300.0,0.00014969,2]
[337557704,1725811846728,-513.86335129,0.00014969,2]
[337557705,1725811846737,-5656.00005436,0.0001497,3]
[337557706,1725811846954,-261.84998954,0.0001497,3]
[337557707,1725811846966,-16902.4934827,0.0001497,3]
[337557708,1725811846976,-160.28188026,0.00014973,2]
[337557709,1725811846985,-500.0,0.00014973,2]
[337557710,1725811846995,-5705.08588166,0.00014978,3]
[337557711,1725811847004,-8557.62882249,0.0001498,3]
[337557712,1725811847014,-22446.05424492,0.0001498,3]
[337557713,1725811847026,-11784.46104508,0.0001498,3]
[337557714,1725811847036,-216.74872697,0.0001498,2]
[337557715,1725811847049,-154.23,0.0001498,2]
[337557716,1725811847058,-34230.51529,0.00014988,3]
[337557717,1725811847067,-2852.54294083,0.0001499,3]
[337557718,1725811847077,-154.23,0.0001499,2]
[337557719,1725811847086,-216.0,0.0001499,2]
[337557720,1725811847095,-281704.083069,0.0001499,3]
[337557721,1725811847105,-154.23,0.0001499,2]
[337557722,1725811847114,-154.23,0.0001499,2]
[337557723,1725811847123,-154.23,0.0001499,2]
[337557724,1725811847133,-154.23,0.0001499,2]
[337557725,1725811847142,-154.23,0.0001499,2]
[337557726,1725811847152,-154.23,0.0001499,2]
[337557727,1725811847161,-154.23,0.0001499,2]
[337557728,1725811847170,-154.23,0.0001499,2]
[337557729,1725811847180,-154.23,0.0001499,2]
[337557730,1725811847189,-154.23,0.0001499,2]
[337557731,1725811847199,-154.23,0.0001499,2]
[337557732,1725811847208,-154.23,0.0001499,2]
[337557733,1725811847217,-154.23,0.0001499,2]
[337557734,1725811847227,-154.23,0.0001499,2]
[337557735,1725811847236,-154.23,0.0001499,2]
[337557736,1725811847245,-154.23,0.0001499,2]
[337557737,1725811847254,-154.23,0.0001499,2]
[337557738,1725811847263,-154.23,0.0001499,2]
[337557739,1725811847274,-154.23,0.0001499,2]
[337557740,1725811847283,-154.23,0.0001499,2]
[337557741,1725811847293,-1000.0,0.00014994,2]
[337557742,1725811847302,-29999.99999901,0.00014998,2]
[337557743,1725811847312,-588.3374626,0.00014998,2]
[337557744,1725811847321,-1182.3309178,0.00014998,2]
[337557745,1725811847330,-156.9976275,0.00014998,2]
[337557746,1725811847339,-2583.0461246,0.00014998,2]
[337557747,1725811847349,-160.181667,0.00014998,2]
[337557748,1725811847358,-17624.6119677,0.00014998,2]
[337557749,1725811847367,-2400.0590434,0.00014998,2]
[337557750,1725811847377,-1305.3800551,0.00014998,2]
[337557751,1725811847386,-304.3779,0.00014999,2]
[337557752,1725811847395,-924.0,0.00015,2]
[337557753,1725811847405,-94760.67056999,0.00015,2]
[337557754,1725811847414,-368634.67741016,0.00015,2]
[337557755,1725811907346,500.0,0.00012164,2]
[337557756,1725811955274,750.0,0.00011,2]
[337557757,1725812075393,167.91,0.00010959,2]
[337557758,1725812253356,362.56,0.00012004,2]
[337557759,1725812572017,161.59,0.00010959,2]
[337557760,1725812831133,500.80355888,0.000123,2]
[337557761,1725812877090,-2030.7105,0.00012632,2]
[337557762,1725812877112,-177.2434856,0.00012999,2]
[337557763,1725812877133,-300.0,0.00012999,2]
[337557764,1725812877154,-150.0,0.00012999,2]
[337557765,1725812877175,-800.0,0.00013,2]
[337557766,1725812877200,-242.0460144,0.00013,2]
[337557769,1725812893282,-8476.05631443,0.00013,2]
[337557772,1725812893344,-8476.05631443,0.00013,2]
[337557773,1725812893378,-8476.05631443,0.00013,2]
[337557774,1725812893449,-8476.05631443,0.00013,2]
[337557775,1725812893508,-2647.71375654,0.00013,2]
[337557790,1725812954970,344.43,0.00011131,2]
[337557808,1725813032102,-300.0,0.00012999,2]
[337557809,1725813032112,-285.0,0.00012999,2]
[337557810,1725813032122,-2269.6015,0.00013,2]
[337557839,1725813037921,-785.78700674,0.00013,2]
[337557840,1725813037979,-2276.12253,0.00013,2]
[337557841,1725813038036,-1310352.42175805,0.00013,2]
[337557842,1725813038045,-805587.83209583,0.00013,2]
[337557843,1725813038054,-326.95573626,0.00013319,2]
[337557844,1725813038063,-344.43,0.00013395,2]
[337557845,1725813038073,-154.66,0.00013419,2]
[337557846,1725813038082,-250.0,0.00013429,2]
[337557847,1725813038091,-251.06,0.00013475,2]
[337557848,1725813038100,-326.95573617,0.00013495,2]
[337557849,1725813038110,-174.58,0.00013496,2]
[337557850,1725813038118,-1000.0,0.000135,2]
[337557851,1725813038127,-180.8,0.00013583,2]
[337557852,1725813038137,-150.99,0.00013583,2]
[337557853,1725813038146,-297.76,0.00013583,2]
[337557854,1725813038155,-180.8,0.0001365,2]
[337557855,1725813038165,-174.28,0.0001365,2]
[337557856,1725813038174,-499.99,0.0001365,2]
[337557857,1725813038183,-326.95573617,0.0001367,2]
[337557858,1725813038193,-223.42,0.00013699,2]
[337557859,1725813038202,-214.07,0.00013699,2]
[337557861,1725813038211,-782.95,0.00013734,2]
[337557862,1725813038221,-6512.86,0.00013734,2]
[337557863,1725813038230,-124135.44938738,0.0001379,2]
[337557864,1725813038239,-16043.7874729,0.000138,3]
[337557865,1725813038248,-326.95573617,0.00013846,2]
[337557866,1725813038257,-252479.679893,0.000139,3]
[337557867,1725813038267,-381.1059,0.00013941,2]
[337557868,1725813038276,-577.0052,0.00013941,2]
[337557869,1725813038285,-326.95573617,0.00014022,2]
[337557870,1725813038294,-1000.0,0.00014042,2]
[337557871,1725813038303,-1833.9,0.00014089,2]
[337557872,1725813038313,-472.79547438,0.00014132,2]
[337557873,1725813038322,-188.5,0.00014132,2]
[337557874,1725813038331,-326.95573617,0.00014197,2]
[337557875,1725813038340,-326.95573617,0.00014373,2]
[337557876,1725813038350,-223.42,0.00014384,2]
[337557877,1725813038359,-202.97,0.00014465,2]
[337557878,1725813038368,-326.95573617,0.00014549,2]
[337557879,1725813038377,-771836.81860853,0.0001468,2]
[337557880,1725813038434,-4718.58591144,0.0001468,2]
[337557881,1725813038446,-5162.99999999,0.0001468,2]
[337557899,1725813040383,-541.62794,0.0001468,2]
[337557901,1725813040394,-300.0,0.0001468,2]
[337557903,1725813040405,-1789.08360229,0.0001468,2]
[337557954,1725813042874,-250.0,0.00013152,2]
[337557955,1725813042884,-292.46,0.0001468,2]
[337557957,1725813042975,-14521.78405893,0.0001468,2]
[337557958,1725813043105,-548.79774281,0.0001468,2]
[337557959,1725813043117,-730.07140233,0.0001468,2]
[337557960,1725813043128,-652.62529538,0.0001468,2]
[337557961,1725813043151,-4224.84312142,0.0001468,2]
[337557962,1725813043162,-942.316296,0.0001468,2]
[337557963,1725813043173,-273.20557687,0.0001468,2]
[337557964,1725813043184,-1348.76744082,0.0001468,2]
[337557965,1725813043217,-1066.6068316,0.0001468,2]
[337557969,1725813043357,-18386.04645497,0.0001468,2]
[337557970,1725813043368,-20464.29,0.0001468,2]
[337557971,1725813043379,-562.6023957,0.0001468,2]
[337557972,1725813043434,-4397.30479506,0.0001468,2]
[337557977,1725813046066,-734.01641473,0.0001468,2]
[337557978,1725813046088,-3145.66036694,0.0001468,2]
[337557979,1725813046099,-812.74759037,0.0001468,2]
[337557980,1725813046110,-11450.0,0.0001468,2]
[337557981,1725813046164,-7771.2679001,0.0001468,2]
[337557982,1725813046176,-588.94,0.0001468,2]
[337557983,1725813046187,-1996.88135758,0.0001468,2]
[337557984,1725813046248,-635.39287192,0.0001468,2]
[337557985,1725813046259,-3929.113636,0.0001468,2]
[337557986,1725813046281,-5784.84070337,0.0001468,2]
[337557987,1725813046292,-14599.27129953,0.0001468,2]
[337557988,1725813046303,-1874.06416438,0.0001468,2]
[337557990,1725813046313,-743.3523116,0.0001468,2]
[337557992,1725813046325,-2610.19070253,0.0001468,2]
[337557993,1725813046339,-997.29786791,0.0001468,2]
[337557994,1725813046350,-527.52697,0.0001468,2]
[337557995,1725813046406,-943.31862009,0.0001468,2]
[337558373,1725813188191,211.74,0.00010959,2]
[337558375,1725813515918,-1000.0,0.00013848,2]
[337558376,1725813518898,250.0,0.00013873,2]
[337558377,1725813548181,35.0,0.00013916,2]
[337558378,1725813559122,350.6,0.00011912,2]
[337558379,1725813659609,169.16548328,0.00013846,30]
[337558380,1725813666446,500.0,0.0001566,30]
[337558381,1725813667364,500.0,0.0001566,30]
[337558382,1725813668538,500.0,0.0001566,30]
[337558383,1725813668745,500.0,0.0001566,30]
[337558384,1725813669114,305.17155474,0.0001566,30]
[337558385,1725813758332,750.0,0.00011,2]
[337558386,1725813796223,150.0,0.00016,30]
[337558389,1725814025340,163.83,0.00010959,2]
[337558390,1725814052866,344.24,0.00011853,2]
[337558407,1725814232121,-870.99601157,0.0001369,2]
[337558408,1725814232148,-202.30578743,0.0001369,2]
[337558409,1725814232159,-169.22,0.00013759,2]
[337558410,1725814232172,-250.0,0.00013771,2]
[337558411,1725814232183,-1000.0,0.00013797,2]
[337558412,1725814232193,-237.88,0.000138,2]
[337558413,1725814232204,-251.06,0.00013804,2]
[337558414,1725814232215,-174.6,0.00013827,2]
[337558415,1725814232226,-234.88862434,0.00013986,2]
[337558416,1725814232238,-298.43637566,0.00013986,2]
[337558417,1725814232249,-140.14382773,0.00014117,2]
[337558418,1725814232278,-204.09617227,0.00014117,2]
[337558419,1725814232287,-150.0,0.00014137,2]
[337558420,1725814232296,-503.0,0.00014137,2]
[337558421,1725814232306,-2380.42,0.00014137,2]
[337558422,1725814232315,-153.8,0.00014152,2]
[337558423,1725814232324,-300.0,0.00014381,2]
[337558424,1725814232333,-5563.81840498,0.00014382,2]
[337558429,1725814232461,-2112.2542493,0.00014382,2]
[337558438,1725814238350,-668.52975339,0.00014382,2]
[337558439,1725814238372,-1404.49193508,0.00014382,2]
[337558490,1725814243475,-4419.7608004,0.00014382,2]
[337558491,1725814243585,-388.005,0.00014382,2]
[337558492,1725814243607,-8986.94181085,0.00014382,2]
[337558493,1725814243616,-23543.801954,0.00014562,2]
[337558494,1725814243626,-7500.0,0.0001458,2]
[337558495,1725814243635,-399.65602396,0.0001458,2]
[337558496,1725814243644,-2500.0,0.0001458,2]
[337558497,1725814243657,-399.65602393,0.00014616,2]
[337558498,1725814243666,-399.65602393,0.00014651,2]
[337558499,1725814243676,-150.0,0.00014679,2]
[337558500,1725814243685,-219632.7461953,0.0001468,2]
[337558501,1725814243694,-391.90056,0.0001468,2]
[337558502,1725814243703,-399.65602393,0.00014687,2]
[337558503,1725814243712,-399.65602393,0.00014722,2]
[337558504,1725814243721,-23543.801954,0.00014742,2]
[337558505,1725814243730,-399.65602393,0.00014758,2]
[337558506,1725814243741,-399.65602393,0.00014793,2]
[337558507,1725814243750,-13419.95382316,0.000148,2]
[337558508,1725814243759,-399.65602393,0.00014829,2]
[337558509,1725814243769,-11764.63066246,0.0001485,2]
[337558510,1725814243779,-399.65602393,0.00014864,2]
[337558511,1725814243788,-595.782,0.00014873,2]
[337558512,1725814243797,-150.0,0.00014873,2]
[337558513,1725814243807,-150.0,0.00014873,2]
[337558514,1725814243816,-150.0,0.00014873,2]
[337558515,1725814243825,-150.4,0.00014873,2]
[337558516,1725814243835,-166.995,0.00014886,2]
[337558517,1725814243844,-1320.66230938,0.000149,2]
[337558518,1725814243854,-468.83126761,0.000149,2]
[337558519,1725814243862,-386.80171268,0.000149,2]
[337558520,1725814243872,-1840.01134927,0.000149,2]
[337558521,1725814243881,-666.18124879,0.000149,2]
[337558522,1725814243890,-768.06776833,0.000149,2]
[337558523,1725814243899,-399.65602393,0.000149,2]
[337558524,1725814243913,-240.55611355,0.00014904,2]
[337558525,1725814243922,-23543.801954,0.00014922,2]
[337558526,1725814243932,-500.0,0.00014973,2]
[337558527,1725814243941,-1304.07703257,0.0001498,3]
[337558528,1725814243950,-151.05,0.0001498,2]